bitfinex/quotes_ETHUSD_20250324
["timestamp","ask_amount","ask_price","bid_price","bid_amount"]
[1742811650384,3.35907767,2093.0,2092.6,9.55737]
[1742811650587,3.35907767,2093.0,2092.6,4.77866]
[1742811650881,3.35907767,2093.0,2092.6,4.77861]
[1742811651280,3.35907767,2093.0,2092.6,9.55726]
[1742811651580,3.35907767,2093.0,2092.6,9.55725]
[1742811651781,3.35907767,2093.0,2092.7,4.77842]
[1742811651951,3.35907767,2093.0,2092.6,4.77869]
[1742811654185,4.70991485,2093.0,2092.6,4.77869]
[1742811655665,4.70991485,2093.0,2092.4,6.48248102]
[1742811655984,0.35907767,2093.0,2092.8,4.77807]
[1742811656190,0.8297,2093.1,2092.8,4.77807]
[1742811656586,7.578,2093.2,2092.8,9.55623]
[1742811656759,7.578,2093.2,2092.9,0.16717343]
[1742811657475,3.0,2093.2,2092.9,4.94522343]
[1742811657681,8.3862,2093.3,2092.9,4.94522343]
[1742811657882,1.94051067,2093.2,2092.9,4.94522343]
[1742811658079,0.8082,2093.3,2093.0,4.77772]
[1742811658277,0.35505761,2093.4,2093.0,0.16711552]
[1742811658473,3.7987,2093.5,2093.2,4.77727]
[1742811658660,3.7987,2093.5,2093.1,4.94423247]
[1742811658864,3.7987,2093.5,2093.3,0.16651668]
[1742811659083,0.7987,2093.5,2093.1,4.7776]
[1742811659397,3.7987,2093.5,2093.2,0.16657457]
[1742811660496,5.3523,2093.7,2093.4,4.77691]
[1742811660664,3.0,2093.6,2093.4,4.77691]
[1742811660873,3.0,2093.6,2093.5,0.16497119]
[1742811661108,5.71320748,2093.7,2093.5,4.94165119]
[1742811661314,4.93790748,2093.7,2093.5,4.94165119]
[1742811661466,4.93790748,2093.7,2093.5,0.16497119]
[1742811661666,3.0,2093.6,2093.5,0.16497119]
[1742811661880,0.36090748,2093.7,2093.5,0.16497119]
[1742811662077,3.0,2093.7,2093.5,0.16497119]
[1742811664061,3.0,2093.7,2093.5,4.94158119]
[1742811664764,4.77556,2094.0,2093.5,4.94158119]
[1742811664765,3.7946,2094.0,2093.6,4.77625]
[1742811665068,3.0,2093.9,2093.7,0.16466228]
[1742811665917,3.0,2093.9,2093.7,4.94087228]
[1742811666496,3.0,2093.9,2093.7,0.16466228]
[1742811667097,3.0,2093.9,2093.7,4.94075228]
[1742811668470,3.0,2093.9,2093.7,0.16466228]
[1742811668991,3.0,2093.9,2093.7,4.94083228]
[1742811669380,3.35060041,2093.9,2093.7,6.02716654]
[1742811671514,3.0,2094.1,2093.7,6.02716654]
[1742811672824,3.36036993,2094.1,2093.7,6.02716654]
[1742811673017,3.36036993,2094.1,2093.8,4.77598]
[1742811673225,3.36036993,2094.1,2093.8,4.93567788]
[1742811673926,3.36036993,2094.1,2093.8,9.71153788]
[1742811674129,3.36036993,2094.1,2093.8,4.93555788]
[1742811675020,5.725557,2093.8,2093.1,0.7711]
[1742811675224,3.79,2093.6,2093.2,4.91043454]
[1742811677021,3.79,2093.6,2093.3,4.77707]
[1742811677216,3.0,2093.6,2093.4,4.91151395]
[1742811677405,3.0,2093.6,2093.5,4.77668]
[1742811677606,3.0,2093.6,2093.5,0.13475178]
[1742811678923,3.0,2093.6,2093.5,4.91143178]
[1742811679129,7.575,2094.0,2093.6,9.55274]
[1742811679299,7.575,2094.0,2093.7,4.7762]
[1742811679499,7.575,2094.0,2093.7,4.91037323]
[1742811680116,7.575,2094.0,2093.7,4.91028323]
[1742811680299,4.575,2094.0,2093.7,4.91036323]
[1742811680602,4.575,2094.0,2093.8,4.776]
[1742811680941,4.575,2094.0,2093.9,0.13344051]
[1742811681937,7.575,2094.0,2093.9,0.13344051]
[1742811682247,3.0,2094.0,2093.9,4.90921051]
[1742811682546,3.0,2094.0,2093.9,5.95703756]
[1742811685231,3.0,2094.0,2093.9,4.90921051]
[1742811688705,3.0,2094.0,2093.9,5.66231051]
[1742811689608,0.7882,2094.6,2094.0,4.77554]
[1742811689803,0.7882,2094.8,2094.3,0.7962]
[1742811690006,0.7882,2094.8,2094.5,4.77428]
[1742811690207,4.574,2094.9,2094.6,4.90537381]
[1742811690404,4.93808184,2094.9,2094.6,0.13122381]
[1742811690621,3.0,2094.8,2094.6,0.13122381]
[1742811690835,4.93808184,2094.9,2094.6,0.13122381]
[1742811691011,0.36408184,2094.9,2094.6,0.13122381]
[1742811691207,4.574,2094.9,2094.6,4.90534381]
[1742811691411,3.0,2094.8,2094.6,4.90534381]
[1742811691715,3.0,2094.8,2094.6,0.13122381]
[1742811692420,3.0,2094.8,2094.6,4.90540381]
[1742811692609,3.0,2094.8,2094.6,0.13122381]
[1742811693524,0.8463295,2094.7,2094.3,5.34502615]
[1742811693713,0.7985,2094.7,2094.4,5.38672262]
[1742811696235,0.7985,2094.7,2094.4,5.38659262]
[1742811696442,3.0,2094.8,2094.5,4.7743]
[1742811697339,3.0,2094.8,2094.4,4.77457]
[1742811697544,3.0,2094.8,2094.4,9.54909]
[1742811697745,3.0,2094.8,2094.4,4.77452]
[1742811698716,3.0478295,2094.8,2094.4,4.77452]
[1742811698925,3.0,2094.8,2094.4,4.77452]
[1742811699315,7.77373,2094.8,2094.4,4.77452]
[1742811699517,3.0,2094.8,2094.4,4.77452]
[1742811700251,7.77376,2094.8,2094.3,4.77478]
[1742811700417,9.64928219,2094.8,2094.3,4.77478]
[1742811700618,9.64928219,2094.8,2094.3,4.77471]
[1742811701548,9.64928219,2094.8,2094.4,4.77462]
[1742811701737,9.64928219,2094.8,2094.3,4.7748]
[1742811702424,3.0,2094.4,2094.1,0.97222753]
[1742811702623,3.0,2094.6,2094.2,4.77496]
[1742811702824,8.59671,2094.7,2094.2,4.77496]
[1742811703222,8.59671,2094.7,2094.2,5.59556]
[1742811703422,10.8221455,2094.7,2094.2,5.59556]
[1742811703738,6.0481355,2094.7,2094.2,5.59555]
[1742811703944,6.0481355,2094.7,2094.3,4.77485]
[1742811704137,6.0481355,2094.7,2094.3,4.77479]
[1742811704345,0.8227,2094.7,2094.4,4.77452]
[1742811704719,1.13165692,2094.9,2094.7,4.77394]
[1742811704943,4.572,2095.1,2094.7,4.77394]
[1742811705150,0.35147058,2095.1,2094.5,0.7767]
[1742811705355,5.3485,2095.2,2094.8,4.77354]
[1742811705650,3.0,2095.1,2094.8,4.77354]
[1742811705850,3.0,2095.1,2094.8,5.59594]
[1742811706749,5.3485,2095.2,2094.8,5.59594]
[1742811706923,3.0,2095.1,2094.8,5.59594]
[1742811707345,3.0,2095.1,2094.9,0.12723517]
[1742811708134,4.572,2095.3,2095.0,4.77326]
[1742811708457,3.8202,2095.4,2095.1,0.12711958]
[1742811708458,1.18691448,2095.4,2095.1,0.12711958]
[1742811710191,3.0,2095.2,2095.1,0.12711958]
[1742811710459,3.0,2095.2,2094.8,5.59603]
[1742811710657,3.0,2095.2,2094.9,0.12507817]
[1742811712460,3.0,2095.2,2094.9,4.89855817]
[1742811713062,3.0,2095.3,2094.9,4.89855817]
[1742811713964,2.95,2095.3,2094.9,4.89855817]
[1742811714456,2.95,2095.3,2095.0,4.77319]
[1742811714659,2.95,2095.3,2095.1,0.12496258]
[1742811714859,2.95,2095.3,2094.9,10.59626382]
[1742811715072,2.95,2095.3,2095.0,0.12290183]
[1742811718873,4.77288,2095.2,2095.0,0.12290183]
[1742811719065,0.8265,2095.1,2094.7,4.77384]
[1742811719277,3.0,2095.0,2094.8,0.12301743]
[1742811719573,6.95454811,2095.0,2094.5,6.01]
[1742811719767,7.77385,2094.8,2094.3,4.77482]
[1742811720157,7.8216795,2094.8,2094.3,4.77471]
[1742811720477,3.8113,2094.6,2094.2,9.54994]
[1742811720673,3.8113,2094.6,2094.3,6.28259598]
[1742811721368,3.8113,2094.6,2094.3,1.50777598]
[1742811721567,3.8113,2094.6,2094.2,4.77493]
[1742811722150,8.58548,2094.6,2094.2,4.77493]
[1742811722360,4.77446,2094.5,2094.3,0.12384569]
[1742811722876,3.0,2094.4,2094.1,0.95681977]
[1742811723080,3.0,2094.4,2094.1,1.58863398]
[1742811723446,3.0,2094.4,2094.1,6.36387398]
[1742811723889,3.0,2094.4,2094.1,1.58863398]
[1742811724459,3.8113,2094.6,2094.1,1.58863398]
[1742811724778,3.8113,2094.6,2094.4,4.77449]
[1742811725088,3.8113,2094.6,2094.3,4.77478]
[1742811725654,8.5855,2094.6,2094.2,4.77506]
[1742811726247,8.6333295,2094.6,2094.2,4.77506]
[1742811726687,8.5855,2094.6,2094.2,4.77506]
[1742811727053,8.5855,2094.6,2094.2,5.810825]
[1742811727254,8.6333295,2094.6,2094.2,5.810825]
[1742811727480,8.5855,2094.6,2094.2,1.035765]
[1742811727779,3.0,2094.4,2094.0,4.77552]
[1742811728193,3.0,2094.4,2094.0,4.77544]
[1742811728563,3.0,2094.4,2094.0,9.5509]
[1742811728803,3.0,2094.4,2094.1,4.77527]
[1742811729391,3.0,2094.4,2094.0,4.77544]
[1742811729597,3.0,2094.4,2094.1,4.77526]
[1742811729895,3.0,2094.4,2094.0,6.411501]
[1742811730059,3.0,2094.4,2094.1,4.77528]
[1742811735370,3.0,2094.4,2094.2,4.77503]
[1742811735570,3.0,2094.4,2094.1,4.77524]
[1742811736196,3.0,2094.4,2094.1,4.77522]
[1742811736395,3.0,2094.4,2094.1,9.55045]
[1742811736601,3.0,2094.4,2094.1,4.77522]
[1742811737305,3.0,2094.4,2094.2,0.12825631]
[1742811738005,0.8008,2094.3,2094.2,0.12825631]
[1742811738210,19.778839,2094.3,2094.2,0.12825631]
[1742811738423,3.0,2094.0,2093.5,4.77661]
[1742811738605,3.0,2094.0,2093.7,4.77619]
[1742811739310,3.0,2094.0,2093.6,4.7763]
[1742811739681,3.0,2094.0,2093.6,9.55267]
[1742811739887,3.0,2094.0,2093.6,8.446637]
[1742811741315,0.8025,2094.1,2093.8,4.7759]
[1742811741677,0.8025,2094.1,2093.9,4.77568]
[1742811741877,3.0,2094.2,2094.0,4.77554]
[1742811742177,0.7623,2094.3,2094.2,4.77509]
[1742811742382,10.641,2094.4,2094.1,4.77532]
[1742811742779,3.0,2094.3,2094.1,4.77532]
[1742811743490,10.641,2094.4,2094.1,4.77532]
[1742811743801,3.0,2094.3,2094.1,4.77532]
[1742811749109,3.0,2094.3,2094.0,4.77553]
[1742811749284,3.0,2094.3,2094.0,4.77538]
[1742811751309,3.0,2094.3,2093.8,0.8281]
[1742811751511,0.7629,2094.2,2093.8,6.9885377]
[1742811751808,0.7629,2094.2,2093.9,4.77577]
[1742811752308,0.7629,2094.2,2094.0,0.12006759]
[1742811752613,0.7629,2094.2,2094.0,4.89560759]
[1742811753596,3.0,2094.3,2094.0,4.89560759]
[1742811754188,3.0,2094.3,2094.1,4.77524]
[1742811754614,3.0,2094.3,2094.2,0.12064457]
[1742811756286,3.0,2094.3,2094.2,4.89573457]
[1742811758821,3.0,2094.4,2094.2,4.89573457]
[1742811759903,3.0,2094.4,2094.3,4.77486]
[1742811760099,3.0,2094.4,2094.3,4.89544673]
[1742811760305,3.35165719,2094.6,2094.4,4.7746]
[1742811760533,3.35165719,2094.6,2094.5,0.12047108]
[1742811765308,0.7726,2095.0,2094.6,4.77418]
[1742811765511,6.07,2095.1,2095.0,4.77326]
[1742811765707,6.8426,2095.2,2095.0,4.88997833]
[1742811765908,3.0,2095.1,2095.0,0.11671833]
[1742811766331,3.0,2095.1,2094.8,4.77365]
[1742811766633,3.0,2094.6,2094.2,4.77502]
[1742811767329,3.0,2094.6,2094.3,4.77484]
[1742811767521,9.07,2094.6,2094.4,0.1170652]
[1742811767722,9.07,2094.6,2094.2,4.77502]
[1742811768032,9.07,2094.6,2094.3,0.11646899]
[1742811768423,13.84425,2094.6,2094.1,10.33717]
[1742811768624,14.20327652,2094.6,2094.4,0.11641116]
[1742811768826,14.20327652,2094.6,2094.1,10.33717]
[1742811769025,14.20327652,2094.6,2094.5,0.11635334]
[1742811769230,14.20327652,2094.6,2094.2,4.77503]
[1742811769430,14.20327652,2094.6,2094.5,0.11635334]
[1742811769602,14.20327652,2094.6,2094.2,4.77503]
[1742811769810,18.77227652,2094.6,2094.5,0.11635334]
[1742811770310,18.77227652,2094.6,2094.2,4.77505]
[1742811770529,13.99802652,2094.6,2094.3,0.11646899]
[1742811770833,0.0478295,2094.5,2094.2,4.77505]
[1742811771039,13.99802652,2094.6,2094.4,0.11641116]
[1742811771203,18.77230652,2094.6,2094.3,0.11646899]
[1742811771532,3.0,2094.5,2094.1,4.77517]
[1742811771717,3.0,2094.5,2094.2,0.477517]
[1742811773025,3.0,2094.5,2094.2,5.252497]
[1742811773227,4.77522,2094.2,2093.7,5.54105]
[1742811773536,3.8328,2094.1,2093.7,5.54105]
[1742811773739,3.0,2093.8,2093.5,0.8092]
[1742811773952,3.0,2093.8,2093.5,6.12366]
[1742811774238,3.0,2093.9,2093.6,4.77644]
[1742811774409,0.8328,2094.1,2093.8,4.77592]
[1742811774737,0.8328,2094.1,2093.8,5.253492]
[1742811775946,0.8328,2094.1,2093.8,0.477592]
[1742811776315,7.77564,2094.0,2093.5,6.12362]
[1742811777018,12.55135,2094.0,2093.5,6.12362]
[1742811777230,7.77564,2094.0,2093.6,1.090052]
[1742811777416,8.13416458,2094.0,2093.6,1.090052]
[1742811778637,3.35852458,2094.0,2093.6,5.866472]
[1742811779028,3.35852458,2094.0,2093.6,1.090052]
[1742811779234,3.35852458,2094.0,2093.7,4.77608]
[1742811779460,3.35852458,2094.0,2093.7,5.9212562]
[1742811779817,3.35852458,2094.0,2093.7,10.6974162]
[1742811780253,3.35852458,2094.0,2093.7,5.9212562]
[1742811780724,3.35852458,2094.0,2093.7,1.1451762]
[1742811781877,3.35852458,2094.0,2093.7,5.9213862]
[1742811782074,8.13411458,2094.0,2093.5,5.58585]
[1742811782372,8.13411458,2094.0,2093.6,0.11293818]
[1742811782373,0.8217,2093.8,2093.6,0.11293818]
[1742811782519,0.8217,2093.8,2093.1,10.78742]
[1742811782520,7.77649,2093.6,2093.1,0.8224]
[1742811782725,3.0,2093.4,2093.1,0.8224]
[1742811782927,3.0,2093.4,2093.2,0.10456767]
[1742811784157,7.77699,2093.4,2093.2,0.10456767]
[1742811784359,7.77699,2093.4,2092.8,6.16151795]
[1742811784360,3.8161,2093.3,2092.8,5.22387713]
[1742811784539,3.8161,2093.3,2093.0,0.76]
[1742811784540,3.0,2093.3,2093.0,0.76]
[1742811784852,3.0,2093.3,2093.2,4.77737]
[1742811785057,6.07,2093.4,2093.3,5.53714]
[1742811785254,11.4477,2093.8,2093.4,4.7769]
[1742811785561,3.0,2093.7,2093.5,0.10612276]
[1742811789129,3.0,2093.7,2093.5,4.88280276]
[1742811789535,3.0,2093.7,2093.5,0.10612276]
[1742811790869,3.0,2093.7,2093.6,4.77646]
[1742811791169,3.35667641,2093.8,2093.6,5.37369817]
[1742811791367,3.0,2093.8,2093.7,0.10600701]
[1742811794249,3.0,2093.8,2093.7,4.88223701]
[1742811794454,3.0,2094.0,2093.7,4.88223701]
[1742811794980,5.60579,2094.2,2093.7,5.65593701]
[1742811794981,13.17588,2094.2,2093.7,5.65593701]
[1742811795670,13.41261671,2094.2,2093.7,5.65593701]
[1742811795860,13.41261671,2094.2,2093.7,4.88223701]
[1742811796053,13.41261671,2094.2,2093.7,5.98518853]
[1742811796264,13.76530883,2094.2,2093.7,5.98518853]
[1742811797256,13.52850212,2094.2,2093.7,5.98503853]
[1742811797464,8.75239212,2094.2,2093.8,5.59258]
[1742811797769,13.52748212,2094.2,2093.9,0.10635221]
[1742811798148,3.0,2094.2,2094.1,4.77532]
[1742811798471,3.0,2094.2,2094.1,0.1062365]
[1742811798671,7.8229195,2094.2,2094.1,0.1062365]
[1742811798855,7.77509,2094.2,2094.1,0.1062365]
[1742811799050,10.963134,2094.2,2093.7,4.77611]
[1742811799250,8.56259,2094.2,2094.1,0.1062365]
[1742811799471,3.7875,2094.2,2093.6,1.42853817]
[1742811799774,3.7875,2094.2,2094.0,4.77548]
[1742811799775,3.0,2094.2,2094.0,4.77548]
[1742811799946,3.0,2094.2,2094.1,0.1062365]
[1742811800670,3.0,2094.2,2094.1,5.92261015]
[1742811802674,3.0,2094.2,2094.1,1.14729015]
[1742811802849,3.0,2094.2,2094.1,0.1062365]
[1742811803042,3.0,2094.2,2094.1,4.8815565]
[1742811803445,5.3196,2094.6,2094.1,9.6568765]
[1742811803654,3.0,2094.5,2094.3,4.77477]
[1742811804061,3.0,2094.5,2094.4,4.88069299]
[1742811804249,3.0,2094.5,2094.4,0.10606299]
[1742811804449,3.0,2094.6,2094.4,4.88066299]
[1742811804668,3.23968461,2094.7,2094.4,4.88066299]
[1742811804874,3.35214651,2094.7,2094.4,4.88066299]
[1742811805383,0.35214651,2094.7,2094.4,4.88066299]
[1742811805553,11.66924,2094.8,2094.4,4.88066299]
[1742811805882,3.0,2094.7,2094.4,4.88066299]
[1742811808173,3.0,2094.7,2094.4,9.65516299]
[1742811808488,3.0,2094.7,2094.6,4.77418]
[1742811808654,6.07,2094.8,2094.6,4.77418]
[1742811808655,3.0,2094.8,2094.6,4.77418]
[1742811808857,3.0,2094.8,2094.6,4.87306132]
[1742811809254,3.36373851,2094.8,2094.6,0.09888132]
[1742811810987,3.0,2094.9,2094.6,4.87296132]
[1742811814301,3.0,2094.9,2094.6,5.55628767]
[1742811814869,3.35297914,2094.9,2094.6,5.55628767]
[1742811815069,3.35297914,2094.9,2094.6,4.87296132]
[1742811816498,3.35297914,2094.9,2094.6,4.79206132]
[1742811816700,3.35297914,2094.9,2094.6,4.86616184]
[1742811817378,3.35297914,2094.9,2094.6,0.09208184]
[1742811821382,3.35297914,2094.9,2094.6,4.86623184]
[1742811822912,5.86547948,2094.9,2094.6,0.09208184]
[1742811823098,10.63912948,2094.9,2094.6,0.09208184]
[1742811823302,10.63912948,2094.9,2094.5,4.77438]
[1742811823485,10.63912948,2094.9,2094.7,0.10888621]
[1742811823685,10.63912948,2094.9,2094.6,0.09079632]
[1742811823914,8.12662914,2094.9,2094.8,0.0906807]
[1742811824110,8.12662914,2094.9,2094.7,0.09073851]
[1742811824415,8.12662914,2094.9,2094.8,0.0906807]
[1742811824618,8.12662914,2094.9,2094.5,4.77438]
[1742811824913,8.12662914,2094.9,2094.6,0.09079632]
[1742811825109,10.63918647,2094.9,2094.6,0.09079632]
[1742811825612,5.86553647,2094.9,2094.7,0.09073851]
[1742811825910,3.0,2094.5,2094.2,4.77498]
[1742811826114,7.77401,2094.7,2094.2,9.54993]
[1742811826298,9.13648,2094.8,2094.3,9.6404898]
[1742811826503,13.91036,2094.8,2094.4,0.7686]
[1742811826810,7.77398,2094.7,2094.4,0.7686]
[1742811827021,7.77398,2094.7,2094.5,0.09085414]
[1742811828433,7.77398,2094.7,2094.3,4.77471]
[1742811828616,9.45157965,2094.7,2094.4,0.10909436]
[1742811829214,15.52157965,2094.7,2094.4,0.10909436]
[1742811829414,13.84398,2094.7,2094.4,0.10909436]
[1742811830812,9.07,2094.7,2094.4,4.88353436]
[1742811831011,9.07,2094.7,2094.6,4.77418]
[1742811831213,9.07,2094.7,2094.6,0.10895559]
[1742811831419,9.07,2094.7,2094.6,4.88313559]
[1742811832039,9.07,2094.7,2094.6,0.10895559]
[1742811835016,3.0,2094.7,2094.6,0.10895559]
[1742811840250,3.0,2094.7,2094.6,1.10895559]
[1742811843654,6.07,2095.0,2094.6,7.12834015]
[1742811843949,3.0,2094.9,2094.6,11.90239015]
[1742811844151,3.0,2094.9,2094.7,4.77393]
[1742811844454,3.0,2094.9,2094.8,0.09121795]
[1742811844654,3.0,2094.9,2094.7,0.7906]
[1742811844858,3.0,2094.9,2094.8,0.09121795]
[1742811845169,3.0,2094.9,2094.7,0.7906]
[1742811845353,3.0,2094.9,2094.8,0.09121795]
[1742811845729,3.0,2094.9,2094.7,6.82274446]
[1742811845944,3.0,2094.9,2094.8,0.09121795]
[1742811846359,3.0,2094.9,2094.7,6.82274446]
[1742811846565,3.0,2094.9,2094.8,4.86493795]
[1742811846761,3.36071001,2095.1,2094.8,4.86493795]
[1742811847067,3.0,2095.1,2094.8,9.63853795]
[1742811848040,3.0,2095.1,2094.9,4.77348]
[1742811848348,3.0,2095.1,2095.0,0.09110235]
[1742811848538,3.35525938,2095.1,2095.0,0.09110235]
[1742811848737,3.0,2095.1,2095.0,0.09110235]
[1742811850928,7.77304,2095.1,2094.7,6.56449]
[1742811851146,7.77304,2095.1,2095.0,0.09110235]
[1742811851345,7.77349,2094.9,2094.7,1.0]
[1742811851551,3.0,2094.8,2094.7,1.0]
[1742811851761,7.77372,2094.8,2094.7,1.0]
[1742811851958,9.11429395,2094.8,2094.7,1.0]
[1742811852458,10.47599395,2094.8,2094.7,1.0]
[1742811852658,16.54599395,2094.8,2094.7,1.0]
[1742811853338,16.54599395,2094.8,2094.7,0.1662]
[1742811856960,7.7744,2094.5,2094.4,1.0]
[1742811857381,7.7744,2094.5,2094.4,1.09298463]
[1742811858163,8.13889791,2094.5,2094.4,1.09298463]
[1742811858767,16.7333097,2094.5,2094.4,1.09298463]
[1742811858978,17.5083097,2094.5,2094.4,1.09298463]
[1742811859194,17.5083097,2094.5,2094.4,1.0]
[1742811859374,17.5083097,2094.5,2093.7,5.3383168]
[1742811859375,3.0,2094.0,2093.7,5.3383168]
[1742811859567,3.0,2094.0,2093.7,11.76013429]
[1742811859768,10.84483,2094.4,2093.7,11.76013429]
[1742811859769,6.07,2094.4,2093.8,0.90070043]
[1742811859950,0.36449791,2094.5,2094.1,5.58226]
[1742811860151,3.0,2094.5,2094.1,5.58226]
[1742811860376,3.0,2094.5,2094.2,4.86892655]
[1742811860865,3.0,2094.5,2094.2,4.86890655]
[1742811861086,3.0,2094.5,2094.2,5.43650721]
[1742811861450,3.0,2094.5,2094.2,5.43648721]
[1742811861892,3.36729086,2094.5,2094.2,5.43648721]
[1742811862079,3.36729086,2094.5,2094.2,10.21143721]
[1742811862579,3.36729086,2094.5,2094.2,10.21140721]
[1742811862769,3.36729086,2094.5,2094.3,5.87670072]
[1742811862973,3.36729086,2094.5,2094.3,1.10185072]
[1742811863161,3.36729086,2094.5,2094.4,0.09356051]
[1742811863569,3.36729086,2094.5,2094.2,5.34255066]
[1742811863767,3.0,2094.5,2094.4,0.09356051]
[1742811863974,3.0,2094.5,2094.3,5.68508834]
[1742811864287,3.0,2094.5,2094.4,4.86819051]
[1742811864488,3.0,2094.5,2094.4,0.09356051]
[1742811867390,3.0,2094.7,2094.4,0.09356051]
[1742811867563,6.4262993,2095.1,2094.7,0.7598]
[1742811867888,4.564,2095.3,2094.7,0.7598]
[1742811868076,6.9022,2095.4,2095.0,4.77317]
[1742811868077,11.4662,2095.4,2095.0,4.77317]
[1742811868282,3.0,2095.3,2095.1,0.09215773]
[1742811868478,3.0,2095.3,2094.9,5.52642]
[1742811868683,7.7727,2095.3,2095.0,0.09221552]
[1742811868886,12.54544,2095.3,2095.0,0.09221552]
[1742811869084,13.48298307,2095.3,2095.0,0.09221552]
[1742811869304,7.7727,2095.3,2095.0,0.09221552]
[1742811869766,8.00510873,2095.3,2095.0,0.09221552]
[1742811870284,8.00510873,2095.3,2094.9,0.753]
[1742811870895,8.36573703,2095.3,2094.9,0.753]
[1742811872995,8.36573703,2095.3,2094.9,5.52649]
[1742811873203,3.59303703,2095.3,2094.9,5.52649]
[1742811873505,3.3606283,2095.3,2095.0,4.77317]
[1742811873991,3.3606283,2095.3,2094.9,6.65104637]
[1742811874700,3.3606283,2095.3,2094.9,11.42443637]
[1742811874896,3.3606283,2095.3,2095.0,9.54624]
[1742811876291,3.3606283,2095.3,2095.1,4.77302]
[1742811876803,3.3606283,2095.3,2095.0,5.91555964]
[1742811877199,3.0,2095.3,2095.1,4.77288]
[1742811877400,6.07,2095.4,2095.3,4.77258]
[1742811877697,5.3421,2095.6,2095.3,4.77256]
[1742811877903,3.0,2095.5,2095.3,4.77256]
[1742811878282,3.0,2095.5,2095.2,5.59918]
[1742811878485,3.0,2095.5,2095.3,1.03722]
[1742811879185,3.40932408,2095.5,2095.0,1.14237964]
[1742811879388,3.0,2095.2,2094.8,5.54962]
[1742811879584,7.77288,2095.2,2094.8,5.54962]
[1742811880335,3.0,2095.0,2094.6,5.56121]
[1742811880633,3.0,2095.0,2094.6,6.117331]
[1742811880840,3.0,2095.0,2094.6,10.891381]
[1742811881136,0.35059561,2095.0,2094.6,1.343221]
[1742811881433,5.5234,2095.0,2094.6,0.7871]
[1742811881733,3.0,2094.8,2094.5,4.7743]
[1742811882214,3.0,2094.8,2094.5,9.54856]
[1742811882415,3.0,2094.8,2094.6,4.77417]
[1742811882791,3.0,2094.8,2094.5,4.77426]
[1742811883109,3.0,2094.8,2094.4,10.12291]
[1742811883110,7.77372,2094.8,2094.4,10.12291]
[1742811883315,7.77372,2094.8,2094.4,12.27045207]
[1742811883525,7.77372,2094.8,2094.4,12.27037207]
[1742811883823,3.0,2094.8,2094.4,17.04485207]
[1742811884023,3.0,2094.8,2094.4,17.04482207]
[1742811884744,3.0,2094.8,2094.4,12.48282207]
[1742811885346,3.0,2094.8,2094.5,1.24828221]
[1742811885701,7.77387,2094.8,2094.4,0.7863]
[1742811885902,3.0,2094.5,2094.2,5.59588]
[1742811886116,3.0,2094.6,2094.2,10.37081]
[1742811886317,3.8023,2094.7,2094.3,5.811921]
[1742811886518,0.8023,2094.7,2094.4,4.77456]
[1742811886731,3.0,2094.8,2094.4,4.77449]
[1742811886901,3.0,2094.8,2094.5,4.77425]
[1742811887103,3.0,2094.8,2094.5,9.54853]
[1742811887301,3.0,2094.8,2094.5,10.35243]
[1742811887711,3.0,2094.8,2094.5,5.57815]
[1742811893836,7.77373,2094.8,2094.5,0.8039]
[1742811895124,3.0,2094.8,2094.5,5.57827]
[1742811895317,3.0,2094.8,2094.5,0.8039]
[1742811896512,7.77373,2094.8,2094.5,0.8039]
[1742811898527,3.0,2094.8,2094.5,0.8039]
[1742811898964,7.77375,2094.8,2094.5,0.8039]
[1742811899664,12.54763,2094.8,2094.4,4.7745]
[1742811899963,10.20774047,2094.8,2094.4,4.7745]
[1742811900330,3.0,2094.4,2094.1,6.7946]
[1742811900536,7.77472,2094.4,2094.1,6.7946]
[1742811900946,4.77489,2094.3,2094.1,6.01]
[1742811901531,4.77472,2094.4,2094.1,6.01]
[1742811901733,3.0,2094.3,2094.1,6.01]
[1742811901936,3.0,2094.4,2094.1,6.01]
[1742811902163,0.7528,2094.8,2094.4,4.77451]
[1742811902330,3.0,2094.7,2094.4,4.77451]
[1742811902530,3.0,2094.8,2094.5,5.5357]
[1742811903135,3.0,2094.8,2094.5,5.53558]
[1742811903348,3.0,2094.8,2094.5,0.7613]
[1742811903550,7.77373,2094.8,2094.5,0.7613]
[1742811904079,12.54761,2094.8,2094.4,4.7746]
[1742811904284,4.77395,2094.7,2094.3,6.30708626]
[1742811904486,7.77373,2094.8,2094.4,4.77462]
[1742811904873,12.54763,2094.8,2094.4,4.77462]
[1742811905478,7.77373,2094.8,2094.4,4.77462]
[1742811906086,7.77352,2094.9,2094.4,4.77456]
[1742811906263,3.0,2094.9,2094.6,4.77402]
[1742811906967,3.0,2094.9,2094.7,0.7539]
[1742811910099,0.3653447,2095.0,2094.7,5.52772]
[1742811910283,4.77305,2095.1,2094.7,5.52772]
[1742811910501,16.18669,2095.4,2094.7,1.784074]
[1742811910703,4.77276,2095.3,2094.9,4.77347]
[1742811910903,7.77281,2095.2,2094.9,4.77347]
[1742811911278,7.77281,2095.2,2094.8,4.77372]
[1742811912906,7.77281,2095.2,2094.8,4.77357]
[1742811913233,7.77281,2095.2,2094.8,9.5472]
[1742811913550,7.77281,2095.2,2094.8,11.1365274]
[1742811914759,3.0,2095.2,2094.9,4.77346]
[1742811917986,4.77403,2094.7,2094.3,0.7609]
[1742811918198,3.0,2094.5,2094.3,0.7609]
[1742811918403,3.0,2094.7,2094.4,0.553597]
[1742811918595,3.35791461,2094.7,2094.4,0.553597]
[1742811919209,3.35791461,2094.7,2094.4,5.328187]
[1742811919407,3.35791461,2094.7,2094.4,0.553597]
[1742811919577,8.13194461,2094.7,2094.4,0.553597]